[Event "*** Titled Tuesday Blitz"]
[Site "Chess.com"]
[Date "2018.09.04"]
[Round "2"]
[White "OglazaOskar2005"]
[Black "LuisFSiles"]
[Result "1-0"]
[WhiteElo "2307"]
[BlackElo "2200"]
[TimeControl "180+2"]
[EndTime "13:55:08 PDT"]
[Termination "OglazaOskar2005 won by resignation"]

1. e4 {[%clk 0:02:59.7]} 1... e5 {[%clk 0:02:59.1]} 2. Nf3 {[%clk 0:02:59.6]}
2... Nc6 {[%clk 0:02:59]} 3. d4 {[%clk 0:03:00.6]} 3... exd4 {[%clk 0:02:59.4]}
4. Nxd4 {[%clk 0:03:02]} 4... g6 {[%clk 0:02:59.4]} 5. Nxc6 {[%clk 0:02:52.4]}
5... bxc6 {[%clk 0:02:58.4]} 6. Qd4 {[%clk 0:02:52.9]} 6... Qf6 {[%clk
0:02:57.3]} 7. Qxf6 {[%clk 0:02:49.6]} 7... Nxf6 {[%clk 0:02:57.5]} 8. f3 {[%clk
0:02:50.1]} 8... Bg7 {[%clk 0:02:49.8]} 9. Nc3 {[%clk 0:02:36.9]} 9... d5 {[%clk
0:02:29.8]} 10. Bd3 {[%clk 0:02:16.3]} 10... O-O {[%clk 0:02:01.6]} 11. O-O
{[%clk 0:02:09.8]} 11... Be6 {[%clk 0:01:57.7]} 12. Bf4 {[%clk 0:02:09.2]} 12...
Rab8 {[%clk 0:01:48.7]} 13. Bxc7 {[%clk 0:01:42.3]} 13... Rxb2 {[%clk
0:01:46.3]} 14. Rfb1 {[%clk 0:01:42.6]} 14... Rxb1+ {[%clk 0:01:03.7]} 15. Rxb1
{[%clk 0:01:43.7]} 15... Ne8 {[%clk 0:01:02.6]} 16. Ba5 {[%clk 0:01:39.8]} 16...
Bd4+ {[%clk 0:00:59.1]} 17. Kf1 {[%clk 0:01:39.6]} 17... Nd6 {[%clk 0:00:59.6]}
18. exd5 {[%clk 0:01:38]} 18... cxd5 {[%clk 0:00:58.9]} 19. Nb5 {[%clk
0:01:37.8]} 19... Nxb5 {[%clk 0:00:54.7]} 20. Rxb5 {[%clk 0:01:39.7]} 20... Rc8
{[%clk 0:00:41.7]} 21. a4 {[%clk 0:01:35.2]} 21... Be5 {[%clk 0:00:39.8]} 22.
Rb7 {[%clk 0:01:34.2]} 22... Bxh2 {[%clk 0:00:37.9]} 23. Rxa7 {[%clk 0:01:33.9]}
23... h5 {[%clk 0:00:37.9]} 24. Rb7 {[%clk 0:01:32.6]} 24... h4 {[%clk
0:00:34.2]} 25. Bd2 {[%clk 0:01:31.6]} 25... h3 {[%clk 0:00:35.1]} 26. a5 {[%clk
0:01:25]} 26... hxg2+ {[%clk 0:00:18.7]} 27. Kxg2 {[%clk 0:01:25.3]} 27... Be5
{[%clk 0:00:19.8]} 28. a6 {[%clk 0:01:24.8]} 28... Bd4 {[%clk 0:00:21.3]} 29. a7
{[%clk 0:01:21.9]} 29... Kg7 {[%clk 0:00:22.7]} 30. c3 {[%clk 0:01:11.5]} 30...
Bc5 {[%clk 0:00:21.4]} 31. Bf4 {[%clk 0:01:10.9]} 31... Ra8 {[%clk 0:00:20.8]}
32. Be5+ {[%clk 0:01:11.6]} 32... Kh6 {[%clk 0:00:21]} 33. Bb8 {[%clk
0:01:11.7]} 33... Bf8 {[%clk 0:00:20.7]} 34. Bb5 {[%clk 0:01:10.8]} 34... Bg7
{[%clk 0:00:20.4]} 35. Bc6 {[%clk 0:01:08.9]} 35... Bxc3 {[%clk 0:00:21.2]} 36.
Rc7 {[%clk 0:01:08.8]} 36... Be5 {[%clk 0:00:21.6]} 37. Bxa8 {[%clk 0:01:09]}
37... Bxc7 {[%clk 0:00:22.6]} 38. Bxc7 {[%clk 0:01:10.4]} 38... d4 {[%clk
0:00:23.4]} 39. Be4 {[%clk 0:01:11.1]} 39... d3 {[%clk 0:00:24.5]} 40. a8=Q
{[%clk 0:01:12.2]} 40... d2 {[%clk 0:00:25]} 41. Qh8+ {[%clk 0:01:13.2]} 1-0

[Event "*** Titled Tuesday Blitz"]
[Site "Chess.com"]
[Date "2018.09.04"]
[Round "2"]
[White "Fighter008"]
[Black "Paparama_1917"]
[Result "0-1"]
[WhiteElo "2456"]
[BlackElo "2482"]
[TimeControl "180+2"]
[EndTime "13:55:14 PDT"]
[Termination "Paparama_1917 won by resignation"]

1. e4 {[%clk 0:03:01.9]} 1... c5 {[%clk 0:03:00.6]} 2. Nf3 {[%clk 0:03:02.4]}
2... Nc6 {[%clk 0:03:00.8]} 3. d4 {[%clk 0:03:01.2]} 3... cxd4 {[%clk
0:03:01.8]} 4. Nxd4 {[%clk 0:03:02.3]} 4... e6 {[%clk 0:03:03]} 5. Nc3 {[%clk
0:03:02.8]} 5... a6 {[%clk 0:03:03.4]} 6. Be3 {[%clk 0:03:03.5]} 6... Qc7 {[%clk
0:03:03.9]} 7. Qf3 {[%clk 0:03:04.4]} 7... Bb4 {[%clk 0:02:59.8]} 8. Nxc6 {[%clk
0:02:50.1]} 8... bxc6 {[%clk 0:02:56.9]} 9. Bd4 {[%clk 0:02:44.8]} 9... e5
{[%clk 0:02:56.8]} 10. Qg3 {[%clk 0:02:45.3]} 10... f6 {[%clk 0:02:48.2]} 11.
Qxg7 {[%clk 0:02:37.5]} 11... exd4 {[%clk 0:02:48.9]} 12. Qxh8 {[%clk
0:02:36.2]} 12... Kf8 {[%clk 0:02:49.4]} 13. a3 {[%clk 0:02:26.8]} 13... dxc3
{[%clk 0:02:36.4]} 14. axb4 {[%clk 0:02:27.1]} 14... Qe5 {[%clk 0:02:37.4]} 15.
Bd3 {[%clk 0:02:21.4]} 15... cxb2 {[%clk 0:02:38]} 16. Rb1 {[%clk 0:02:19.5]}
16... Qc3+ {[%clk 0:02:38.5]} 17. Ke2 {[%clk 0:02:16.2]} 17... d6 {[%clk
0:02:19.8]} 18. Rhd1 {[%clk 0:02:08.2]} 18... Ra7 {[%clk 0:02:17.4]} 19. Kf1
{[%clk 0:01:54.4]} 19... Rg7 {[%clk 0:02:17.8]} 20. e5 {[%clk 0:01:41.5]} 20...
Qxe5 {[%clk 0:02:06.2]} 21. g3 {[%clk 0:01:42.6]} 21... Bh3+ {[%clk 0:02:04.8]}
22. Kg1 {[%clk 0:01:43.7]} 22... f5 {[%clk 0:01:59]} 23. Bf1 {[%clk 0:01:24.5]}
23... Rxg3+ {[%clk 0:01:53.7]} 24. hxg3 {[%clk 0:01:19.9]} 24... Qxh8 {[%clk
0:01:54]} 25. Bxh3 {[%clk 0:01:20.9]} 25... Qc3 {[%clk 0:01:53.4]} 26. Bxf5
{[%clk 0:01:19.1]} 26... Ne7 {[%clk 0:01:53.6]} 27. Bxh7 {[%clk 0:01:10.8]}
27... Kg7 {[%clk 0:01:53]} 28. Bd3 {[%clk 0:01:11.3]} 28... Nd5 {[%clk
0:01:53.8]} 29. Bxa6 {[%clk 0:01:06.1]} 29... Nxb4 {[%clk 0:01:54]} 30. Bd3
{[%clk 0:00:54.1]} 30... d5 {[%clk 0:01:54.1]} 31. Bf1 {[%clk 0:00:31.2]} 31...
Nxc2 {[%clk 0:01:46.7]} 32. Rd3 {[%clk 0:00:29.9]} 32... Qb4 {[%clk 0:01:26.2]}
33. Be2 {[%clk 0:00:21.5]} 33... Na3 {[%clk 0:01:25.7]} 34. Rdd1 {[%clk
0:00:19.2]} 34... Nxb1 {[%clk 0:01:26.4]} 35. Rxb1 {[%clk 0:00:20.7]} 35... Qd2
{[%clk 0:01:27.6]} 36. Kf1 {[%clk 0:00:21.3]} 36... Qc1+ {[%clk 0:01:27.1]} 0-1

[Event "*** Titled Tuesday Blitz"]
[Site "Chess.com"]
[Date "2018.09.04"]
[Round "2"]
[White "AlexanderL"]
[Black "W_Amadeus"]
[Result "1-0"]
[WhiteElo "2812"]
[BlackElo "2560"]
[TimeControl "180+2"]
[EndTime "13:55:16 PDT"]
[Termination "AlexanderL won by resignation"]

1. Nf3 {[%clk 0:03:01.9]} 1... d5 {[%clk 0:02:59.3]} 2. e3 {[%clk 0:03:02.6]}
2... Nf6 {[%clk 0:02:58.8]} 3. c4 {[%clk 0:03:03.7]} 3... e6 {[%clk 0:02:58.6]}
4. Nc3 {[%clk 0:03:04.2]} 4... a6 {[%clk 0:02:47.1]} 5. b3 {[%clk 0:03:04.1]}
5... c5 {[%clk 0:02:44.9]} 6. Bb2 {[%clk 0:03:01]} 6... Nc6 {[%clk 0:02:26.9]}
7. cxd5 {[%clk 0:02:57.7]} 7... exd5 {[%clk 0:02:26]} 8. d4 {[%clk 0:02:58.1]}
8... cxd4 {[%clk 0:02:21.9]} 9. Nxd4 {[%clk 0:02:58.4]} 9... Bb4 {[%clk
0:02:21.8]} 10. a3 {[%clk 0:02:18.5]} 10... Ba5 {[%clk 0:02:22.5]} 11. b4 {[%clk
0:02:15]} 11... Bc7 {[%clk 0:02:22.9]} 12. Be2 {[%clk 0:02:12.6]} 12... O-O
{[%clk 0:02:15.3]} 13. O-O {[%clk 0:02:10.5]} 13... Qd6 {[%clk 0:01:57.9]} 14.
g3 {[%clk 0:02:11.2]} 14... Bh3 {[%clk 0:01:59]} 15. Re1 {[%clk 0:02:12]} 15...
Ne5 {[%clk 0:01:59.6]} 16. Rc1 {[%clk 0:02:04.3]} 16... Nc4 {[%clk 0:01:27.1]}
17. Qb3 {[%clk 0:01:44.2]} 17... b5 {[%clk 0:01:11]} 18. Red1 {[%clk 0:01:11.5]}
18... Rae8 {[%clk 0:00:54.6]} 19. Ncxb5 {[%clk 0:00:59.9]} 19... axb5 {[%clk
0:00:55.2]} 20. Nxb5 {[%clk 0:01:01.8]} 20... Qb6 {[%clk 0:00:23.4]} 21. Nxc7
{[%clk 0:01:02.1]} 21... Qxc7 {[%clk 0:00:17.2]} 22. Bxf6 {[%clk 0:01:01.6]}
22... gxf6 {[%clk 0:00:18.1]} 23. Rxd5 {[%clk 0:01:02.3]} 23... Nd2 {[%clk
0:00:13.2]} 24. Qd1 {[%clk 0:01:02.9]} 24... Qa7 {[%clk 0:00:08.9]} 25. Qxd2
{[%clk 0:01:03.1]} 25... Qxa3 {[%clk 0:00:10.5]} 26. Ra5 {[%clk 0:00:58.5]}
26... Rd8 {[%clk 0:00:06.9]} 27. Rxa3 {[%clk 0:00:44.7]} 27... Rxd2 {[%clk
0:00:07.6]} 28. Bf1 {[%clk 0:00:46.4]} 28... Bxf1 {[%clk 0:00:07.2]} 29. Kxf1
{[%clk 0:00:47.5]} 29... Rb2 {[%clk 0:00:08.8]} 30. Rc4 {[%clk 0:00:47.2]} 30...
Rd8 {[%clk 0:00:09.3]} 31. Rf4 {[%clk 0:00:47]} 31... Kg7 {[%clk 0:00:09.9]} 32.
Ra6 {[%clk 0:00:46]} 1-0

[Event "*** Titled Tuesday Blitz"]
[Site "Chess.com"]
[Date "2018.09.04"]
[Round "2"]
[White "akretchetov"]
[Black "northridgehawk"]
[Result "1-0"]
[WhiteElo "2242"]
[BlackElo "2115"]
[TimeControl "180+2"]
[EndTime "13:55:21 PDT"]
[Termination "akretchetov won by resignation"]

1. Nf3 {[%clk 0:03:01.9]} 1... Nf6 {[%clk 0:02:59]} 2. c4 {[%clk 0:03:02.7]}
2... g6 {[%clk 0:02:59.5]} 3. Nc3 {[%clk 0:03:03.5]} 3... d5 {[%clk 0:03:00.4]}
4. cxd5 {[%clk 0:03:02.8]} 4... Nxd5 {[%clk 0:03:02.3]} 5. Qa4+ {[%clk
0:03:03.6]} 5... Bd7 {[%clk 0:03:00.7]} 6. Qh4 {[%clk 0:02:53.3]} 6... Nb6
{[%clk 0:02:59.5]} 7. d3 {[%clk 0:02:50.7]} 7... Nc6 {[%clk 0:02:59]} 8. Bh6
{[%clk 0:02:44.7]} 8... e5 {[%clk 0:02:58.6]} 9. Qxd8+ {[%clk 0:02:21.7]} 9...
Rxd8 {[%clk 0:03:00.5]} 10. Bxf8 {[%clk 0:02:19.4]} 10... Kxf8 {[%clk
0:03:01.5]} 11. a3 {[%clk 0:02:17.9]} 11... a6 {[%clk 0:03:01]} 12. g3 {[%clk
0:02:17.3]} 12... Kg7 {[%clk 0:03:01.7]} 13. Bg2 {[%clk 0:02:18]} 13... Rhe8
{[%clk 0:03:02.2]} 14. O-O {[%clk 0:02:18.5]} 14... f6 {[%clk 0:03:03]} 15. Rfc1
{[%clk 0:02:15.9]} 15... Be6 {[%clk 0:03:03.5]} 16. b4 {[%clk 0:02:06.2]} 16...
Ne7 {[%clk 0:02:53.2]} 17. Ne4 {[%clk 0:01:59.3]} 17... Ned5 {[%clk 0:02:52.9]}
18. Nc5 {[%clk 0:01:57.9]} 18... Bc8 {[%clk 0:02:54]} 19. Nd2 {[%clk 0:01:58.1]}
19... c6 {[%clk 0:02:54.2]} 20. Rab1 {[%clk 0:01:54.4]} 20... Nd7 {[%clk
0:02:50.4]} 21. Nde4 {[%clk 0:01:47.1]} 21... N7b6 {[%clk 0:02:39.8]} 22. a4
{[%clk 0:01:42.8]} 22... f5 {[%clk 0:02:33.1]} 23. Nd2 {[%clk 0:01:43.2]} 23...
Kf6 {[%clk 0:02:28.1]} 24. b5 {[%clk 0:01:38.7]} 24... axb5 {[%clk 0:02:17.3]}
25. axb5 {[%clk 0:01:39.5]} 25... Rd6 {[%clk 0:02:01]} 26. bxc6 {[%clk
0:01:32.5]} 26... Rxc6 {[%clk 0:01:56.5]} 27. e4 {[%clk 0:01:26.4]} 27... fxe4
{[%clk 0:01:46.9]} 28. dxe4 {[%clk 0:01:17.6]} 28... Ne7 {[%clk 0:01:34.2]} 29.
Bf1 {[%clk 0:01:12.4]} 29... Rd8 {[%clk 0:01:32.2]} 30. Ndb3 {[%clk 0:01:11.7]}
30... Nd7 {[%clk 0:01:23.9]} 31. Nxd7+ {[%clk 0:01:08.1]} 31... Bxd7 {[%clk
0:01:20]} 32. Nc5 {[%clk 0:01:06.3]} 32... b6 {[%clk 0:01:10.2]} 33. Nxd7+
{[%clk 0:01:04.9]} 33... Rxd7 {[%clk 0:01:06]} 34. Rxc6+ {[%clk 0:01:04.8]}
34... Nxc6 {[%clk 0:01:07.1]} 35. Rxb6 {[%clk 0:01:05.5]} 35... Rd6 {[%clk
0:01:02.3]} 36. Bb5 {[%clk 0:01:06.3]} 36... Kg5 {[%clk 0:01:00.5]} 37. Rxc6
{[%clk 0:01:05.9]} 37... Rd1+ {[%clk 0:01:00.7]} 38. Kg2 {[%clk 0:01:06.7]}
38... h5 {[%clk 0:01:01.2]} 39. h4+ {[%clk 0:01:06.9]} 39... Kh6 {[%clk
0:01:02]} 40. Bc4 {[%clk 0:01:07.3]} 40... Rd7 {[%clk 0:01:00.7]} 41. Be6 {[%clk
0:01:06.1]} 41... Re7 {[%clk 0:00:52.7]} 42. Bf5 {[%clk 0:01:07]} 42... Rg7
{[%clk 0:00:52.2]} 43. f4 {[%clk 0:01:06.3]} 43... exf4 {[%clk 0:00:53.1]} 44.
gxf4 {[%clk 0:01:07.5]} 44... Kh7 {[%clk 0:00:54.5]} 45. Rxg6 {[%clk 0:01:08]}
45... Rxg6+ {[%clk 0:00:52.4]} 46. Kf3 {[%clk 0:01:08.9]} 46... Kg7 {[%clk
0:00:53.3]} 47. Bxg6 {[%clk 0:01:10.1]} 47... Kxg6 {[%clk 0:00:55.2]} 48. Ke3
{[%clk 0:01:11.4]} 48... Kf6 {[%clk 0:00:57.1]} 49. Kd4 {[%clk 0:01:12.3]} 1-0

[Event "*** Titled Tuesday Blitz"]
[Site "Chess.com"]
[Date "2018.09.04"]
[Round "2"]
[White "Kouzari"]
[Black "ItalianMachine"]
[Result "1-0"]
[WhiteElo "2465"]
[BlackElo "2312"]
[TimeControl "180+2"]
[EndTime "13:55:25 PDT"]
[Termination "Kouzari won by checkmate"]

1. d4 {[%clk 0:02:59.6]} 1... Nf6 {[%clk 0:02:59.6]} 2. c4 {[%clk 0:02:58.4]}
2... g6 {[%clk 0:02:59.7]} 3. Nc3 {[%clk 0:02:59.8]} 3... Bg7 {[%clk 0:03:00.9]}
4. e4 {[%clk 0:03:01.3]} 4... O-O {[%clk 0:03:01.7]} 5. Be2 {[%clk 0:03:02.8]}
5... c5 {[%clk 0:03:01.7]} 6. d5 {[%clk 0:03:02.5]} 6... d6 {[%clk 0:03:02.9]}
7. Be3 {[%clk 0:03:03.1]} 7... b5 {[%clk 0:02:51]} 8. cxb5 {[%clk 0:03:02.9]}
8... a6 {[%clk 0:02:52.5]} 9. bxa6 {[%clk 0:03:00.7]} 9... Bxa6 {[%clk
0:02:53.4]} 10. Nf3 {[%clk 0:03:02.1]} 10... Qb6 {[%clk 0:02:49.4]} 11. Rb1
{[%clk 0:02:54.5]} 11... Nbd7 {[%clk 0:02:14.8]} 12. O-O {[%clk 0:02:53]} 12...
Rfb8 {[%clk 0:02:16.2]} 13. Nd2 {[%clk 0:02:52]} 13... Ne5 {[%clk 0:02:13.5]}
14. h3 {[%clk 0:02:45.2]} 14... Nh5 {[%clk 0:01:47.4]} 15. b4 {[%clk 0:02:34.3]}
15... Bxe2 {[%clk 0:01:36.4]} 16. Qxe2 {[%clk 0:02:33]} 16... Qc7 {[%clk
0:01:37.8]} 17. bxc5 {[%clk 0:02:32]} 17... dxc5 {[%clk 0:01:38.9]} 18. g4
{[%clk 0:02:05.1]} 18... Nf6 {[%clk 0:01:17.8]} 19. f4 {[%clk 0:01:45]} 19...
Ned7 {[%clk 0:00:42.3]} 20. e5 {[%clk 0:01:45.3]} 20... Nxe5 {[%clk 0:00:42.5]}
21. fxe5 {[%clk 0:01:46.3]} 21... Qxe5 {[%clk 0:00:43.3]} 22. Bf4 {[%clk
0:01:25.7]} 22... Qd4+ {[%clk 0:00:35.8]} 23. Qe3 {[%clk 0:01:13.1]} 23... Rxb1
{[%clk 0:00:35.3]} 24. Rxb1 {[%clk 0:01:11.2]} 24... Nxd5 {[%clk 0:00:32.4]} 25.
Nxd5 {[%clk 0:01:05.9]} 25... Qxd5 {[%clk 0:00:33.1]} 26. Nf3 {[%clk 0:01:06.3]}
26... Qxa2 {[%clk 0:00:26.8]} 27. Rb7 {[%clk 0:00:46.8]} 27... Qd5 {[%clk
0:00:17.8]} 28. Rxe7 {[%clk 0:00:45.6]} 28... Bf8 {[%clk 0:00:13.5]} 29. Re5
{[%clk 0:00:42]} 29... Ra1+ {[%clk 0:00:14]} 30. Kg2 {[%clk 0:00:41.9]} 30...
Ra2+ {[%clk 0:00:15.2]} 31. Kg3 {[%clk 0:00:42.2]} 31... Qd1 {[%clk 0:00:13.3]}
32. Re8 {[%clk 0:00:42.4]} 32... Qh1 {[%clk 0:00:06.2]} 33. Rxf8+ {[%clk
0:00:42.5]} 33... Kxf8 {[%clk 0:00:07.3]} 34. Bh6+ {[%clk 0:00:44]} 34... Kg8
{[%clk 0:00:08.1]} 35. Qe8# {[%clk 0:00:45.5]} 1-0

[Event "*** Titled Tuesday Blitz"]
[Site "Chess.com"]
[Date "2018.09.04"]
[Round "2"]
[White "lavr92"]
[Black "GMWSO"]
[Result "0-1"]
[WhiteElo "2586"]
[BlackElo "2962"]
[TimeControl "180+2"]
[EndTime "13:55:28 PDT"]
[Termination "GMWSO won by resignation"]

1. d4 {[%clk 0:02:56.8]} 1... Nf6 {[%clk 0:02:57.9]} 2. c4 {[%clk 0:02:57.5]}
2... e6 {[%clk 0:02:55]} 3. Nc3 {[%clk 0:02:58.3]} 3... Bb4 {[%clk 0:02:51.8]}
4. g3 {[%clk 0:02:59.1]} 4... O-O {[%clk 0:02:44.2]} 5. Bg2 {[%clk 0:03:00.2]}
5... d5 {[%clk 0:02:45.6]} 6. Nf3 {[%clk 0:03:01.1]} 6... dxc4 {[%clk
0:02:46.9]} 7. O-O {[%clk 0:03:01.8]} 7... Nc6 {[%clk 0:02:48.3]} 8. Qa4 {[%clk
0:03:02.9]} 8... Nd5 {[%clk 0:02:47.6]} 9. Qc2 {[%clk 0:03:03.7]} 9... Be7
{[%clk 0:02:41.6]} 10. Rd1 {[%clk 0:03:04]} 10... Bd7 {[%clk 0:02:42.8]} 11. Ne5
{[%clk 0:02:34.4]} 11... Nxe5 {[%clk 0:02:18.8]} 12. dxe5 {[%clk 0:02:33.5]}
12... c6 {[%clk 0:02:19.2]} 13. Ne4 {[%clk 0:02:23.5]} 13... b5 {[%clk
0:02:19.4]} 14. a3 {[%clk 0:02:21.2]} 14... Qc7 {[%clk 0:02:13.1]} 15. Nd6
{[%clk 0:02:20.4]} 15... f6 {[%clk 0:02:00.1]} 16. e4 {[%clk 0:02:07.1]} 16...
fxe5 {[%clk 0:01:54.8]} 17. Nxb5 {[%clk 0:01:34.1]} 17... cxb5 {[%clk
0:01:53.3]} 18. exd5 {[%clk 0:01:34.9]} 18... Rad8 {[%clk 0:01:48]} 19. Be3
{[%clk 0:01:25.1]} 19... exd5 {[%clk 0:01:45.2]} 20. Bxd5+ {[%clk 0:00:57.4]}
20... Kh8 {[%clk 0:01:45.7]} 21. Be4 {[%clk 0:00:59]} 21... h6 {[%clk
0:01:34.4]} 22. Qe2 {[%clk 0:00:50.3]} 22... Bc5 {[%clk 0:01:30.3]} 23. Qh5
{[%clk 0:00:21]} 23... Be8 {[%clk 0:01:24]} 24. Qe2 {[%clk 0:00:17.1]} 24... Bf7
{[%clk 0:01:14.2]} 25. Qg4 {[%clk 0:00:14.2]} 25... Bxe3 {[%clk 0:01:07.8]} 26.
fxe3 {[%clk 0:00:14.9]} 26... Qb6 {[%clk 0:01:06.4]} 27. Qf5 {[%clk 0:00:09.3]}
27... Bg8 {[%clk 0:01:03.4]} 28. Qg6 {[%clk 0:00:06.3]} 28... Qxe3+ {[%clk
0:00:58.1]} 29. Kh1 {[%clk 0:00:07.6]} 29... Rd4 {[%clk 0:00:57.3]} 30. Bg2
{[%clk 0:00:04.8]} 30... Rxd1+ {[%clk 0:00:54.3]} 31. Rxd1 {[%clk 0:00:06.2]}
31... Qe2 {[%clk 0:00:53.2]} 32. Rg1 {[%clk 0:00:02.5]} 32... Qxb2 {[%clk
0:00:51.7]} 33. g4 {[%clk 0:00:03.7]} 33... Rf2 {[%clk 0:00:42.7]} 34. g5 {[%clk
0:00:04.5]} 34... Rxg2 {[%clk 0:00:42.8]} 35. Rxg2 {[%clk 0:00:05.4]} 35... Qa1+
{[%clk 0:00:43.5]} 0-1

[Event "*** Titled Tuesday Blitz"]
[Site "Chess.com"]
[Date "2018.09.04"]
[Round "2"]
[White "Ksenia_Legenko"]
[Black "RU_B9"]
[Result "1-0"]
[WhiteElo "2060"]
[BlackElo "1978"]
[TimeControl "180+2"]
[EndTime "13:55:35 PDT"]
[Termination "Ksenia_Legenko won on time"]

1. d4 {[%clk 0:03:01.9]} 1... Nf6 {[%clk 0:02:58.7]} 2. c4 {[%clk 0:03:02.3]}
2... e6 {[%clk 0:02:59.9]} 3. g3 {[%clk 0:03:02.5]} 3... d5 {[%clk 0:03:00]} 4.
Nf3 {[%clk 0:03:02.6]} 4... Bb4+ {[%clk 0:02:56]} 5. Bd2 {[%clk 0:03:02.7]} 5...
Be7 {[%clk 0:02:56.6]} 6. Bg2 {[%clk 0:03:03.2]} 6... O-O {[%clk 0:02:56.4]} 7.
O-O {[%clk 0:03:04.7]} 7... c6 {[%clk 0:02:56.7]} 8. b3 {[%clk 0:03:00.8]} 8...
Nbd7 {[%clk 0:02:54.4]} 9. Qc2 {[%clk 0:03:01.4]} 9... b6 {[%clk 0:02:53.6]} 10.
Nc3 {[%clk 0:03:01.8]} 10... Ba6 {[%clk 0:02:49.2]} 11. Nb1 {[%clk 0:02:40]}
11... Rc8 {[%clk 0:02:44.1]} 12. Rd1 {[%clk 0:02:38.6]} 12... c5 {[%clk
0:02:32.1]} 13. Bf4 {[%clk 0:02:34.2]} 13... dxc4 {[%clk 0:02:24.9]} 14. bxc4
{[%clk 0:02:30.6]} 14... cxd4 {[%clk 0:02:19.5]} 15. Nbd2 {[%clk 0:02:31.2]}
15... Nh5 {[%clk 0:02:14.2]} 16. Nxd4 {[%clk 0:02:24.3]} 16... Nxf4 {[%clk
0:02:13.4]} 17. gxf4 {[%clk 0:02:23.6]} 17... Bf6 {[%clk 0:01:59.3]} 18. Ne4
{[%clk 0:01:32.9]} 18... Rxc4 {[%clk 0:01:47]} 19. Qd3 {[%clk 0:01:24.3]} 19...
Bxd4 {[%clk 0:01:36]} 20. Rab1 {[%clk 0:01:21.6]} 20... Qc7 {[%clk 0:01:02.3]}
21. e3 {[%clk 0:01:13.4]} 21... Nc5 {[%clk 0:00:42.5]} 22. Qa3 {[%clk
0:01:09.1]} 22... Ra4 {[%clk 0:00:38.5]} 23. Qc1 {[%clk 0:00:52.4]} 23... Bf6
{[%clk 0:00:24.5]} 24. Nxf6+ {[%clk 0:00:46.8]} 24... gxf6 {[%clk 0:00:24.1]}
25. Qc3 {[%clk 0:00:47.7]} 25... Qe7 {[%clk 0:00:14.3]} 26. a3 {[%clk
0:00:35.7]} 26... Kh8 {[%clk 0:00:12.8]} 27. Kh1 {[%clk 0:00:35.1]} 27... Rg8
{[%clk 0:00:12.6]} 28. Bf3 {[%clk 0:00:31.6]} 28... Bb7 {[%clk 0:00:11.7]} 29.
e4 {[%clk 0:00:25.3]} 29... Nxe4 {[%clk 0:00:06]} 30. Qe3 {[%clk 0:00:24]} 1-0

[Event "*** Titled Tuesday Blitz"]
[Site "Chess.com"]
[Date "2018.09.04"]
[Round "2"]
[White "CrushingKings"]
[Black "ecwinslow"]
[Result "1-0"]
[WhiteElo "1625"]
[BlackElo "2008"]
[TimeControl "180+2"]
[EndTime "13:55:36 PDT"]
[Termination "CrushingKings won by resignation"]

1. e4 {[%clk 0:03:01.9]} 1... c5 {[%clk 0:02:36.1]} 2. Nf3 {[%clk 0:03:02.5]}
2... d6 {[%clk 0:02:36.5]} 3. Bb5+ {[%clk 0:02:58]} 3... Bd7 {[%clk 0:02:34.4]}
4. a4 {[%clk 0:02:58.6]} 4... Nf6 {[%clk 0:02:31.6]} 5. Qe2 {[%clk 0:02:57]}
5... a6 {[%clk 0:02:29.9]} 6. Bxd7+ {[%clk 0:02:56.9]} 6... Qxd7 {[%clk
0:02:30.8]} 7. Na3 {[%clk 0:02:51.3]} 7... e6 {[%clk 0:02:30.1]} 8. Nc4 {[%clk
0:02:51.4]} 8... Qc7 {[%clk 0:02:29.1]} 9. O-O {[%clk 0:02:46.5]} 9... Nc6
{[%clk 0:02:25.9]} 10. d3 {[%clk 0:02:27.2]} 10... Be7 {[%clk 0:02:18.4]} 11.
Bf4 {[%clk 0:02:27.1]} 11... Nh5 {[%clk 0:02:00.6]} 12. Bd2 {[%clk 0:02:26.2]}
12... O-O {[%clk 0:01:59.7]} 13. a5 {[%clk 0:02:01.9]} 13... Nf6 {[%clk
0:01:55.5]} 14. Bf4 {[%clk 0:01:50.8]} 14... Nd7 {[%clk 0:01:49.3]} 15. c3
{[%clk 0:01:48.1]} 15... Nde5 {[%clk 0:01:39.9]} 16. Bg3 {[%clk 0:01:42.3]}
16... Nxf3+ {[%clk 0:01:30.2]} 17. Qxf3 {[%clk 0:01:42.1]} 17... Ne5 {[%clk
0:01:25.9]} 18. Nxe5 {[%clk 0:01:33.3]} 18... dxe5 {[%clk 0:01:25.8]} 19. d4
{[%clk 0:01:34.9]} 19... cxd4 {[%clk 0:01:03.7]} 20. cxd4 {[%clk 0:01:33.9]}
20... Qc2 {[%clk 0:00:53.7]} 21. Bxe5 {[%clk 0:01:25.3]} 21... f6 {[%clk
0:00:47.3]} 22. Bg3 {[%clk 0:00:57.6]} 22... Rac8 {[%clk 0:00:44.4]} 23. d5
{[%clk 0:00:49]} 23... e5 {[%clk 0:00:34.8]} 24. Qg4 {[%clk 0:00:44.2]} 24...
Rfd8 {[%clk 0:00:32.5]} 25. h4 {[%clk 0:00:32.2]} 25... Rc4 {[%clk 0:00:24]} 26.
Rad1 {[%clk 0:00:24.8]} 26... Bd6 {[%clk 0:00:20.9]} 27. Rfe1 {[%clk 0:00:21.4]}
27... g6 {[%clk 0:00:19.5]} 28. h5 {[%clk 0:00:22.5]} 28... Kg7 {[%clk
0:00:19.5]} 29. Bh4 {[%clk 0:00:22.4]} 29... Qxb2 {[%clk 0:00:16.1]} 30. h6+
{[%clk 0:00:16.8]} 30... Kxh6 {[%clk 0:00:14.2]} 31. Bxf6 {[%clk 0:00:17.7]} 1-0

[Event "*** Titled Tuesday Blitz"]
[Site "Chess.com"]
[Date "2018.09.04"]
[Round "2"]
[White "chesstatour"]
[Black "mjray79"]
[Result "1-0"]
[WhiteElo "1994"]
[BlackElo "2043"]
[TimeControl "180+2"]
[EndTime "13:55:37 PDT"]
[Termination "chesstatour won on time"]

1. c4 {[%clk 0:03:01.9]} 1... e6 {[%clk 0:02:59]} 2. Nc3 {[%clk 0:03:01.3]} 2...
d5 {[%clk 0:02:59.1]} 3. d4 {[%clk 0:03:02.3]} 3... Nf6 {[%clk 0:02:58.6]} 4. g3
{[%clk 0:03:00.9]} 4... c6 {[%clk 0:02:58.4]} 5. Bg2 {[%clk 0:03:02.3]} 5...
Nbd7 {[%clk 0:02:57.5]} 6. Nf3 {[%clk 0:03:02.9]} 6... Be7 {[%clk 0:02:55.7]} 7.
O-O {[%clk 0:03:02.8]} 7... O-O {[%clk 0:02:56.4]} 8. b3 {[%clk 0:02:49.6]} 8...
b6 {[%clk 0:02:56.2]} 9. Bb2 {[%clk 0:02:49.3]} 9... Bb7 {[%clk 0:02:56]} 10.
Rc1 {[%clk 0:02:48.9]} 10... Rc8 {[%clk 0:02:55.4]} 11. e3 {[%clk 0:02:35.5]}
11... c5 {[%clk 0:02:55.8]} 12. Ne5 {[%clk 0:02:27.2]} 12... Qc7 {[%clk
0:02:38.9]} 13. cxd5 {[%clk 0:02:16.7]} 13... exd5 {[%clk 0:02:18]} 14. Bh3
{[%clk 0:02:03.7]} 14... Rcd8 {[%clk 0:01:56.2]} 15. Nxd7 {[%clk 0:01:45.9]}
15... Nxd7 {[%clk 0:01:55.5]} 16. dxc5 {[%clk 0:01:43.6]} 16... Nxc5 {[%clk
0:01:41.5]} 17. b4 {[%clk 0:01:35.1]} 17... Qc6 {[%clk 0:01:23.1]} 18. Bg2
{[%clk 0:01:23.2]} 18... Ne6 {[%clk 0:01:15.5]} 19. Nxd5 {[%clk 0:01:10]} 19...
Rxd5 {[%clk 0:00:55.1]} 20. Rxc6 {[%clk 0:01:09.2]} 20... Rxd1 {[%clk 0:00:54]}
21. Rxd1 {[%clk 0:00:56.3]} 21... Bxc6 {[%clk 0:00:53.9]} 22. Bxc6 {[%clk
0:00:56.7]} 22... Bxb4 {[%clk 0:00:54.5]} 23. Rd7 {[%clk 0:00:41.2]} 23... Rc8
{[%clk 0:00:53.4]} 24. Bd5 {[%clk 0:00:26.5]} 24... Rc2 {[%clk 0:00:19]} 25. Be5
{[%clk 0:00:22.5]} 25... Bf8 {[%clk 0:00:06.2]} 26. Rxa7 {[%clk 0:00:13]} 26...
Rc1+ {[%clk 0:00:06.8]} 27. Kg2 {[%clk 0:00:13.5]} 27... Rc5 {[%clk 0:00:07.5]}
28. e4 {[%clk 0:00:11.2]} 28... b5 {[%clk 0:00:06.5]} 29. Ra8 {[%clk 0:00:09.7]}
1-0